bitfinex-derivatives/quotes_BTCF0:USTF0_20260214
["timestamp","ask_amount","ask_price","bid_price","bid_amount"]
[1771069837315,0.014211,70406.0,70389.0,0.39773291]
[1771069837515,0.15652,70405.0,70392.0,0.014213]
[1771069837809,0.014213,70396.0,70391.0,0.014214]
[1771069838007,0.41907032,70408.0,70396.0,0.39773291]
[1771069838008,0.01432,70408.0,70396.0,0.39773291]
[1771069838208,0.1422,70410.0,70398.0,0.014212]
[1771069838413,0.1422,70410.0,70396.0,0.41194591]
[1771069838414,0.014211,70404.0,70397.0,0.014212]
[1771069838617,0.014212,70401.0,70395.0,0.01432]
[1771069838916,0.014211,70402.0,70396.0,0.014213]
[1771069839210,0.014212,70400.0,70393.0,0.014213]
[1771069839407,0.01432,70403.0,70396.0,0.014213]
[1771069839612,0.01432,70403.0,70394.0,0.01432]
[1771069839613,0.01432,70403.0,70395.0,0.014213]
[1771069840210,0.014211,70402.0,70395.0,0.014213]
[1771069840410,0.014212,70400.0,70395.0,0.014213]
[1771069840615,0.014213,70393.0,70390.0,0.1422]
[1771069840814,0.028531,70403.0,70390.0,0.1422]
[1771069840815,0.014212,70398.0,70392.0,0.014213]
[1771069841012,0.028531,70403.0,70394.0,0.014213]
[1771069841212,0.40488362,70434.0,70411.0,0.41558007]
[1771069841516,0.014207,70426.0,70418.0,0.014208]
[1771069841716,0.014206,70428.0,70410.0,0.01421]
[1771069841717,0.014206,70428.0,70424.0,0.41558007]
[1771069841913,0.014206,70428.0,70413.0,0.01432]
[1771069841914,0.014207,70426.0,70420.0,0.014208]
[1771069842214,0.1422,70433.0,70416.0,0.42978807]
[1771069842215,0.01432,70425.0,70422.0,0.41558007]
[1771069842418,0.1422,70433.0,70427.0,0.014206]
[1771069842615,0.5688,70454.0,70431.0,0.41558007]
[1771069842818,0.5688,70454.0,70425.0,0.014207]
[1771069842819,0.014206,70432.0,70425.0,0.028527]
[1771069843006,0.014205,70434.0,70427.0,0.014206]
[1771069843007,0.014205,70433.0,70427.0,0.014206]
[1771069843314,0.028525,70434.0,70425.0,0.01432]
[1771069843511,0.014206,70430.0,70420.0,0.1422]
[1771069843708,0.014208,70421.0,70410.0,0.14216]
[1771069843906,0.56136362,70429.0,70410.0,0.14216]
[1771069843907,0.014208,70419.0,70410.0,0.14216]
[1771069844210,0.000112,70418.0,70417.0,0.014208]
[1771069844409,0.000112,70418.0,70410.0,0.14216]
[1771069844410,0.014206,70431.0,70420.0,0.014208]
[1771069844715,0.014207,70427.0,70421.0,0.014208]
[1771069844913,0.014206,70428.0,70421.0,0.014208]
[1771069845214,0.014206,70428.0,70419.0,0.42990007]
[1771069845215,0.014207,70427.0,70422.0,0.014207]
[1771069845419,0.85143939,70460.0,70422.0,0.014207]
[1771069845420,0.014205,70434.0,70429.0,0.41558007]
[1771069845619,0.028524,70438.0,70427.0,0.014206]
[1771069845810,0.014204,70438.0,70429.0,0.41558007]
[1771069846012,0.0002,70465.0,70452.0,0.41558007]
[1771069846013,1e-06,70465.0,70452.0,0.41558007]
[1771069846318,0.0142,70458.0,70446.0,0.028562]
[1771069846615,0.0142,70458.0,70440.0,0.41558007]
[1771069846616,0.014202,70447.0,70441.0,0.14216]
[1771069846813,0.014201,70452.0,70441.0,0.014204]
[1771069847009,0.014202,70448.0,70441.0,0.014204]
[1771069847207,0.014202,70448.0,70433.0,0.41558007]
[1771069847208,0.142361,70465.0,70447.0,0.09178107]
[1771069847413,0.0142,70458.0,70447.0,0.09178107]
[1771069847621,0.01436,70457.0,70452.0,0.014201]
[1771069847809,0.01436,70456.0,70452.0,0.014201]
[1771069848214,0.41908462,70453.0,70442.0,0.028563]
[1771069848412,0.014202,70452.0,70442.0,0.01436]
[1771069848610,0.01436,70451.0,70441.0,0.014204]
[1771069848814,0.01436,70451.0,70443.0,0.014203]
[1771069849109,0.014201,70454.0,70448.0,0.014202]
[1771069849314,0.014202,70451.0,70445.0,0.014203]
[1771069849518,0.014202,70450.0,70444.0,0.014203]
[1771069849719,0.028561,70453.0,70445.0,0.014203]
[1771069849720,0.01436,70449.0,70445.0,0.014203]
[1771069849922,0.01436,70449.0,70441.0,0.014204]
[1771069850218,0.01436,70449.0,70428.0,0.41558007]
[1771069850219,0.14212,70449.0,70428.0,0.41558007]
[1771069850413,0.14212,70449.0,70427.0,0.01436]
[1771069850414,0.41908462,70457.0,70437.0,0.014204]
[1771069850614,0.01436,70459.0,70444.0,0.014203]
[1771069850922,0.0142,70460.0,70431.0,0.014206]
[1771069850923,0.0142,70460.0,70445.0,0.44414307]
[1771069851117,0.02856,70459.0,70452.0,0.014201]
[1771069851519,0.014201,70455.0,70449.0,0.014202]
[1771069851714,0.014201,70454.0,70446.0,0.014203]
[1771069851916,0.014201,70454.0,70448.0,0.014202]
[1771069852116,0.014202,70451.0,70445.0,0.014203]
[1771069852311,0.014202,70450.0,70443.0,0.014203]
[1771069852516,0.014202,70449.0,70443.0,0.014203]
[1771069852912,0.014202,70449.0,70441.0,0.014203]
[1771069853117,0.014202,70449.0,70433.0,0.01436]
[1771069853118,0.014204,70440.0,70434.0,0.014205]
[1771069853318,0.56136362,70442.0,70423.0,0.14212]
[1771069853512,0.014204,70438.0,70431.0,0.014206]
[1771069853815,0.028409,70437.0,70431.0,0.014206]
[1771069854118,0.014203,70444.0,70438.0,0.014204]
[1771069854322,0.014204,70440.0,70429.0,0.014206]
[1771069854527,0.014204,70438.0,70430.0,0.014206]
[1771069854825,0.014205,70435.0,70429.0,0.014206]
[1771069855019,0.014205,70433.0,70427.0,0.014206]
[1771069855420,0.014205,70432.0,70427.0,0.014206]
[1771069855621,0.014205,70433.0,70427.0,0.014206]
[1771069856027,0.01436,70432.0,70426.0,0.014207]
[1771069856227,0.01436,70432.0,70427.0,0.014206]
[1771069856525,0.014206,70431.0,70426.0,0.014207]
[1771069856824,0.014206,70427.0,70416.0,0.014208]
[1771069857125,0.01436,70426.0,70423.0,0.014207]
[1771069857525,0.01436,70426.0,70424.0,0.014207]
[1771069857722,0.01436,70426.0,70423.0,0.014207]
[1771069858326,0.41924362,70426.0,70405.0,0.41558007]
[1771069858524,0.014207,70423.0,70408.0,0.01421]
[1771069858827,0.01436,70422.0,70417.0,0.014208]
[1771069859021,0.028567,70422.0,70417.0,0.014208]
[1771069859622,0.01436,70422.0,70417.0,0.014208]
[1771069859828,0.028568,70421.0,70410.0,0.01436]
[1771069860129,0.01436,70420.0,70413.0,0.014209]
[1771069860321,0.43345162,70420.0,70401.0,0.41558007]
[1771069860624,0.01436,70419.0,70416.0,0.014208]
[1771069861126,0.01436,70419.0,70415.0,0.014209]
[1771069861326,0.01436,70419.0,70416.0,0.014209]
[1771069861917,0.014208,70418.0,70409.0,0.01421]
[1771069862123,0.014208,70418.0,70412.0,0.014209]
[1771069862327,0.028568,70417.0,70412.0,0.014209]
[1771069862521,0.14208,70420.0,70408.0,0.01421]
[1771069862522,0.01436,70416.0,70408.0,0.01421]
[1771069862732,0.01436,70416.0,70410.0,0.01421]
[1771069862921,0.106856,70420.0,70415.0,0.014209]
[1771069863116,0.014209,70416.0,70411.0,0.01421]
[1771069863323,0.028569,70415.0,70410.0,0.01421]
[1771069863623,0.106856,70420.0,70410.0,0.01421]
[1771069863624,0.14208,70418.0,70410.0,0.01421]
[1771069863822,0.14208,70418.0,70407.0,0.02857]
[1771069863823,0.028568,70417.0,70407.0,0.01436]
[1771069864017,0.20709037,70420.0,70405.0,0.41686881]
[1771069864219,0.014207,70426.0,70405.0,0.41686881]
[1771069864426,0.14944,70425.0,70419.0,0.014208]
[1771069864721,0.14208,70424.0,70419.0,0.014208]
[1771069865124,0.04908,70424.0,70419.0,0.014208]
[1771069865328,0.04908,70424.0,70420.0,0.014208]
[1771069865726,0.014206,70428.0,70420.0,0.014208]
[1771069866027,0.000201,70465.0,70425.0,0.014207]
[1771069866028,0.014206,70431.0,70425.0,0.014207]
[1771069866324,0.40420001,70438.0,70421.0,0.014208]
[1771069866325,0.14208,70432.0,70428.0,0.014206]
[1771069866631,0.01436,70431.0,70426.0,0.014207]
[1771069866824,0.014206,70430.0,70425.0,0.014207]
[1771069867027,0.014207,70426.0,70418.0,0.01436]
[1771069867224,0.01436,70427.0,70415.0,0.01436]
[1771069867532,0.01436,70427.0,70408.0,0.51686881]
[1771069867533,0.014208,70418.0,70413.0,0.014209]
[1771069867825,0.014208,70421.0,70415.0,0.028418]
[1771069868028,0.014206,70431.0,70409.0,0.15629]
[1771069868029,0.014206,70430.0,70418.0,0.014208]
[1771069868218,0.3161,70454.0,70419.0,0.41686881]
[1771069868219,0.40420001,70438.0,70419.0,0.41686881]
[1771069868420,0.40420001,70446.0,70425.0,0.41686881]
[1771069868725,0.40420001,70446.0,70418.0,0.14208]
[1771069868726,0.014202,70448.0,70429.0,0.41686881]
[1771069868934,0.014201,70454.0,70444.0,0.014203]
[1771069869228,0.014202,70450.0,70441.0,0.014204]
[1771069869429,0.014201,70454.0,70446.0,0.014202]
[1771069869619,0.014201,70454.0,70448.0,0.014202]
[1771069869817,0.170641,70453.0,70448.0,0.014202]
[1771069870022,0.014202,70449.0,70444.0,0.014203]
[1771069870224,0.01436,70449.0,70446.0,0.014203]
[1771069870425,0.005111,70449.0,70446.0,0.014203]
[1771069870726,0.14208,70453.0,70446.0,0.014203]
[1771069870727,0.01436,70453.0,70448.0,0.014202]
[1771069870917,0.01436,70453.0,70447.0,0.014202]
[1771069871122,0.014202,70452.0,70447.0,0.014202]
[1771069871532,0.014202,70452.0,70446.0,0.014203]
[1771069871835,0.014201,70456.0,70451.0,0.014201]
[1771069872132,0.0142,70457.0,70451.0,0.014201]
[1771069872333,0.0142,70457.0,70452.0,0.014201]
[1771069872532,0.01436,70456.0,70452.0,0.014201]
[1771069873131,0.0142,70457.0,70452.0,0.014201]
[1771069873332,0.028561,70456.0,70451.0,0.014202]
[1771069873630,0.0142,70460.0,70454.0,0.014201]
[1771069873832,0.01436,70459.0,70448.0,0.41686881]
[1771069874133,0.014201,70456.0,70451.0,0.014201]
[1771069874433,0.01436,70455.0,70451.0,0.014201]
[1771069874627,0.014201,70454.0,70448.0,0.41686881]
[1771069874828,0.01436,70455.0,70444.0,0.43107181]
[1771069874829,0.014201,70453.0,70444.0,0.43107181]
[1771069875028,0.014201,70453.0,70446.0,0.014203]
[1771069875230,0.014201,70453.0,70447.0,0.014202]
[1771069875428,0.028561,70455.0,70444.0,0.014203]
[1771069875730,0.014201,70452.0,70447.0,0.014202]
[1771069876332,0.014202,70451.0,70444.0,0.014203]
[1771069876530,0.014203,70444.0,70434.0,0.014205]
[1771069876726,0.014204,70439.0,70434.0,0.014205]
[1771069876932,0.40420001,70454.0,70441.0,0.014204]
[1771069877131,0.40420001,70454.0,70426.0,0.014206]
[1771069877132,0.01436,70455.0,70452.0,0.014201]
[1771069877628,0.000476,70455.0,70454.0,0.014201]
[1771069877835,0.14208,70460.0,70452.0,0.014201]
[1771069877836,0.01436,70457.0,70455.0,0.014201]
[1771069878025,0.01436,70458.0,70453.0,0.014201]
[1771069878426,0.02856,70458.0,70453.0,0.014201]
[1771069878630,0.014201,70456.0,70451.0,0.014201]
[1771069879230,0.41856001,70458.0,70448.0,0.01436]
[1771069879427,0.014202,70449.0,70443.0,0.014203]
[1771069879625,0.014202,70448.0,70443.0,0.014203]
[1771069879829,0.014202,70448.0,70442.0,0.01436]
[1771069879830,0.014203,70446.0,70442.0,0.01436]
[1771069880027,0.028562,70451.0,70441.0,0.014204]
[1771069880028,0.014202,70450.0,70441.0,0.014204]
[1771069880333,0.014203,70446.0,70440.0,0.01436]
[1771069880528,0.014203,70446.0,70433.0,0.01436]
[1771069880733,0.01436,70447.0,70434.0,0.014205]
[1771069880927,0.01436,70447.0,70443.0,0.014203]
[1771069881134,0.014201,70456.0,70445.0,0.014203]
[1771069881435,0.014202,70450.0,70445.0,0.014203]
[1771069881634,0.01436,70449.0,70445.0,0.014203]
[1771069882136,0.028562,70449.0,70444.0,0.014203]
[1771069882336,0.40420001,70447.0,70428.0,0.156286]
[1771069882524,0.01436,70449.0,70432.0,0.014205]
[1771069882525,0.014204,70437.0,70432.0,0.014205]
[1771069882729,0.01436,70441.0,70429.0,0.01436]
[1771069882929,0.014205,70433.0,70426.0,0.028566]
[1771069883128,0.01436,70435.0,70429.0,0.014206]
[1771069883531,0.014205,70434.0,70428.0,0.014206]
[1771069883735,0.014205,70434.0,70428.0,0.028412]
[1771069883928,0.014205,70434.0,70428.0,0.014206]
[1771069885837,0.014205,70432.0,70422.0,0.014207]
[1771069886146,0.014207,70426.0,70421.0,0.14204]
[1771069886339,0.014207,70426.0,70420.0,0.01436]
[1771069886539,0.028414,70426.0,70421.0,0.014208]
[1771069886736,0.014207,70427.0,70421.0,0.014207]
[1771069887043,0.014206,70427.0,70421.0,0.014208]
[1771069887540,0.01436,70428.0,70422.0,0.014207]
[1771069887741,0.014208,70418.0,70407.0,0.41686881]
[1771069887940,0.014208,70421.0,70415.0,0.014209]
[1771069888141,0.014208,70419.0,70413.0,0.170609]
[1771069888739,0.014208,70419.0,70413.0,0.184818]
[1771069889345,0.028567,70423.0,70419.0,0.014208]
[1771069889346,0.01436,70423.0,70419.0,0.014208]
[1771069889736,0.01436,70425.0,70417.0,0.028568]
[1771069890041,0.01436,70425.0,70418.0,0.014208]
[1771069890236,0.01436,70424.0,70419.0,0.014208]
[1771069890638,0.01436,70424.0,70420.0,0.014208]
[1771069890840,0.01436,70424.0,70421.0,0.014208]
[1771069891043,0.01436,70424.0,70419.0,0.014208]
[1771069891341,0.028567,70424.0,70419.0,0.014208]
[1771069891546,0.028567,70424.0,70417.0,0.014208]
[1771069891547,0.01436,70424.0,70417.0,0.014208]
[1771069891937,0.01436,70424.0,70420.0,0.014208]
[1771069892638,0.01436,70424.0,70421.0,0.014208]
[1771069892840,0.014206,70427.0,70422.0,0.014207]
[1771069893044,0.4250069,70495.0,70415.0,0.01436]
[1771069893045,0.01436,70426.0,70425.0,0.014207]
[1771069893344,0.139264,70432.0,70425.0,0.014207]
[1771069893547,0.014206,70430.0,70425.0,0.014207]
[1771069893938,0.01436,70429.0,70425.0,0.014207]
[1771069895246,0.01436,70429.0,70419.0,0.41793357]
[1771069895446,0.01436,70429.0,70427.0,0.014206]
[1771069895741,0.014204,70437.0,70421.0,0.40372557]
[1771069895946,0.170645,70436.0,70430.0,0.014206]
[1771069896145,0.014203,70443.0,70426.0,0.014206]
[1771069896349,0.014205,70437.0,70431.0,0.014205]
[1771069896545,0.014205,70437.0,70419.0,0.01436]
[1771069896546,0.01436,70436.0,70419.0,0.41808557]
[1771069896741,0.014205,70433.0,70419.0,0.41808557]
[1771069896940,0.01436,70432.0,70428.0,0.014206]
[1771069897136,0.01436,70431.0,70425.0,0.014207]
[1771069897537,0.014206,70430.0,70421.0,0.014208]
[1771069897741,0.028566,70431.0,70426.0,0.014207]
[1771069897946,0.01436,70430.0,70426.0,0.014207]
[1771069898140,0.01436,70429.0,70426.0,0.014207]
[1771069898341,0.01436,70429.0,70425.0,0.014207]
[1771069898542,0.01436,70429.0,70426.0,0.014207]
[1771069898738,0.014206,70431.0,70426.0,0.014207]
[1771069898950,0.01436,70430.0,70426.0,0.014207]
[1771069899544,0.014205,70432.0,70426.0,0.014207]
[1771069899746,0.01436,70431.0,70427.0,0.014206]
[1771069901952,0.01436,70431.0,70428.0,0.014206]
[1771069902152,0.01436,70430.0,70428.0,0.014206]
[1771069903655,0.14208,70434.0,70432.0,0.014205]
[1771069903856,0.01436,70433.0,70432.0,0.014205]
[1771069904362,0.01436,70433.0,70431.0,0.014205]
[1771069904559,0.01436,70432.0,70431.0,0.014205]
[1771069904858,0.01436,70432.0,70429.0,0.014206]
[1771069905052,0.01436,70432.0,70430.0,0.014206]
[1771069905253,0.01436,70432.0,70423.0,0.014207]
[1771069905551,0.01436,70432.0,70426.0,0.014207]
[1771069905756,0.028565,70432.0,70423.0,0.014207]
[1771069905950,0.028565,70432.0,70427.0,0.014206]
[1771069906151,0.014206,70431.0,70427.0,0.014206]
[1771069906659,0.014205,70433.0,70427.0,0.014206]
[1771069906956,0.01432,70432.0,70428.0,0.014206]
[1771069907454,0.01432,70432.0,70425.0,0.014207]
[1771069907754,0.028525,70432.0,70423.0,0.014207]
[1771069908259,0.028525,70432.0,70427.0,0.014206]
[1771069909154,0.014206,70431.0,70426.0,0.014207]
[1771069909353,0.014206,70430.0,70425.0,0.014207]
[1771069909546,0.01432,70429.0,70425.0,0.014207]
[1771069909750,0.01432,70429.0,70422.0,0.028527]
[1771069909751,0.014207,70426.0,70422.0,0.01432]
[1771069909948,0.014206,70428.0,70423.0,0.014207]
[1771069910353,0.014206,70427.0,70422.0,0.014207]
[1771069910554,0.01432,70426.0,70422.0,0.014207]
[1771069911152,0.014207,70425.0,70418.0,0.014208]
[1771069911348,0.01432,70426.0,70422.0,0.014207]
[1771069912258,0.014206,70431.0,70426.0,0.014206]
[1771069912560,0.54040475,70435.0,70398.0,0.01432]
[1771069912561,0.014212,70402.0,70398.0,0.01432]
[1771069912753,0.01432,70408.0,70400.0,0.014212]
[1771069912949,0.01432,70407.0,70402.0,0.014211]
[1771069913450,0.01421,70408.0,70402.0,0.014211]
[1771069914050,0.01421,70408.0,70401.0,0.014211]
[1771069914261,0.01421,70408.0,70399.0,0.01432]
[1771069914457,0.014211,70405.0,70399.0,0.028532]
[1771069914656,0.028421,70407.0,70399.0,0.042744]
[1771069915259,0.014211,70406.0,70399.0,0.028532]
[1771069915563,0.014211,70405.0,70399.0,0.01432]
[1771069915762,0.01421,70407.0,70398.0,0.014212]
[1771069915763,0.01432,70406.0,70398.0,0.01432]
[1771069915961,0.014212,70401.0,70395.0,0.01432]
[1771069916268,0.014216,70381.0,70369.0,0.38887629]
[1771069916563,0.01432,70382.0,70368.0,0.01432]
[1771069916758,0.028536,70382.0,70374.0,0.014217]
[1771069916961,0.41253875,70389.0,70374.0,0.014217]
[1771069916962,0.39832475,70396.0,70377.0,0.38887629]
[1771069917161,0.13696669,70408.0,70388.0,0.38887629]
[1771069917162,0.014213,70395.0,70388.0,0.38887629]
[1771069917361,0.14208,70402.0,70385.0,0.014215]
[1771069917362,0.014213,70394.0,70385.0,0.028535]
[1771069917558,0.014213,70393.0,70387.0,0.014214]
[1771069917760,0.01432852,70394.0,70385.0,0.028535]
[1771069917761,0.00011552,70394.0,70385.0,0.01432]
[1771069917953,0.01436,70397.0,70393.0,0.014213]
[1771069918262,0.01436,70397.0,70389.0,0.014214]
[1771069918263,0.014213,70396.0,70389.0,0.014214]
[1771069918866,0.014213,70392.0,70387.0,0.014214]
[1771069919056,0.014213,70394.0,70388.0,0.014214]
[1771069919262,0.014214,70391.0,70385.0,0.01432]
[1771069919570,0.014213,70393.0,70388.0,0.014214]
[1771069920472,0.01436,70393.0,70389.0,0.014214]
[1771069920668,0.01436,70395.0,70392.0,0.014213]
[1771069920961,0.01436,70395.0,70388.0,0.014214]
[1771069921156,0.01436,70395.0,70390.0,0.014214]
[1771069921361,0.01436,70395.0,70391.0,0.014214]
[1771069921661,0.01436,70395.0,70385.0,0.01432]
[1771069921862,0.014214,70392.0,70381.0,0.01436]
[1771069922061,0.014214,70390.0,70385.0,0.014215]
[1771069922465,0.392044,70395.0,70381.0,0.01436]
[1771069922466,0.014213,70396.0,70386.0,0.014215]
[1771069922773,0.01436,70395.0,70390.0,0.014214]
[1771069924368,0.01436,70395.0,70380.0,0.14208]
[1771069924369,0.392044,70435.0,70400.0,0.39951653]
[1771069924580,0.014209,70413.0,70402.0,0.014211]
[1771069924772,0.01436,70412.0,70403.0,0.014211]
[1771069924972,0.01436,70412.0,70407.0,0.01421]
[1771069925273,0.014209,70417.0,70409.0,0.01421]
[1771069925469,0.01436,70416.0,70410.0,0.01421]
[1771069925665,0.01436,70415.0,70410.0,0.01421]
[1771069925865,0.014208,70418.0,70412.0,0.014209]
[1771069926070,0.392044,70414.0,70394.0,0.39951653]
[1771069926273,0.014209,70415.0,70407.0,0.01421]
[1771069926477,0.028569,70415.0,70407.0,0.01421]
[1771069926774,0.014207,70423.0,70417.0,0.014208]
[1771069926971,0.014205,70433.0,70419.0,0.014208]
[1771069927175,0.014206,70431.0,70420.0,0.014208]
[1771069927373,0.028565,70432.0,70426.0,0.014207]
[1771069927374,0.014206,70432.0,70426.0,0.014207]
[1771069927567,0.014206,70428.0,70423.0,0.014207]
[1771069928072,0.014206,70429.0,70423.0,0.014207]
[1771069928278,0.015205,70433.0,70425.0,0.014207]
[1771069928576,0.014205,70432.0,70426.0,0.01436]
[1771069928766,0.014206,70431.0,70426.0,0.01436]
[1771069929167,0.015205,70433.0,70426.0,0.01436]
[1771069929370,0.014206,70427.0,70417.0,0.39951653]
[1771069929575,0.014207,70423.0,70418.0,0.01436]
[1771069929774,0.014207,70422.0,70418.0,0.01436]
[1771069930176,0.014208,70421.0,70419.0,0.01436]
[1771069930378,0.014208,70420.0,70415.0,0.14212]
[1771069930573,0.014207,70423.0,70416.0,0.01436]
[1771069930873,0.014208,70421.0,70410.0,0.01421]
[1771069931067,0.406404,70427.0,70420.0,0.014208]
[1771069931266,0.014206,70430.0,70423.0,0.014207]
[1771069931477,0.028566,70430.0,70423.0,0.014207]
[1771069931974,0.014207,70423.0,70416.0,0.014209]
[1771069932177,0.392044,70427.0,70417.0,0.01436]
[1771069932368,0.014208,70420.0,70413.0,0.14212]
[1771069932571,0.014208,70419.0,70413.0,0.156329]
[1771069932771,0.014208,70419.0,70414.0,0.01436]
[1771069932972,0.014209,70416.0,70415.0,0.01436]
[1771069933172,0.014208,70418.0,70415.0,0.0004216]
[1771069933580,0.014208,70418.0,70413.0,0.14212]
[1771069933777,0.014208,70421.0,70414.0,0.01436]
[1771069933971,0.014209,70416.0,70414.0,0.01436]
[1771069934171,0.014208,70418.0,70414.0,0.01436]
[1771069934378,0.014209,70417.0,70413.0,0.01436]
[1771069934673,0.014209,70417.0,70411.0,0.014209]
[1771069934874,0.01421,70412.0,70408.0,0.14212]
[1771069935072,0.014209,70413.0,70407.0,0.01421]
[1771069935571,0.014209,70414.0,70408.0,0.01436]
[1771069936277,0.014209,70416.0,70408.0,0.02857]
[1771069936473,0.01436,70417.0,70412.0,0.014209]
[1771069936869,0.01436,70417.0,70408.0,0.01436]
[1771069937074,0.01436,70419.0,70413.0,0.014209]
[1771069937276,0.01436,70419.0,70412.0,0.014209]
[1771069937277,0.028568,70419.0,70412.0,0.014209]
[1771069937469,0.014208,70419.0,70413.0,0.014209]
[1771069937681,0.014208,70421.0,70413.0,0.028569]
[1771069937877,0.014208,70420.0,70413.0,0.028569]
[1771069938078,0.01436,70422.0,70417.0,0.014208]
[1771069938281,0.028568,70422.0,70415.0,0.028418]
[1771069938576,0.028568,70422.0,70416.0,0.014208]
[1771069938781,0.028568,70422.0,70416.0,0.028416]
[1771069938976,0.01436,70422.0,70417.0,0.014208]
[1771069939180,0.01436,70423.0,70417.0,0.014208]
[1771069939481,0.01436,70426.0,70419.0,0.014208]
[1771069939676,0.014207,70425.0,70417.0,0.028568]
[1771069939871,0.014207,70425.0,70419.0,0.014208]
[1771069940282,0.028414,70425.0,70419.0,0.014208]
[1771069940477,0.014207,70425.0,70419.0,0.014208]
[1771069940675,0.014207,70427.0,70419.0,0.014208]
[1771069940676,0.028567,70427.0,70420.0,0.014208]
[1771069940877,0.014207,70425.0,70420.0,0.028568]
[1771069941078,0.028566,70430.0,70425.0,0.014207]
[1771069941386,0.014207,70427.0,70421.0,0.014208]
[1771069941776,0.014207,70427.0,70421.0,0.028416]
[1771069941976,0.014207,70427.0,70421.0,0.014208]
[1771069942384,0.014207,70427.0,70421.0,0.028415]
[1771069942580,0.01436,70430.0,70425.0,0.014207]
[1771069942781,0.01436,70430.0,70424.0,0.014207]
[1771069943178,0.014206,70428.0,70423.0,0.01436]
[1771069943580,0.014206,70429.0,70423.0,0.01436]
[1771069943581,0.01436,70430.0,70425.0,0.014207]
[1771069943781,0.028566,70430.0,70424.0,0.014207]
[1771069943981,0.014206,70428.0,70423.0,0.028567]
[1771069944481,0.014206,70430.0,70423.0,0.028567]
[1771069944686,0.014206,70428.0,70423.0,0.028567]
[1771069945187,0.028412,70428.0,70423.0,0.01436]
[1771069945392,0.028565,70432.0,70423.0,0.01436]
[1771069945577,0.014206,70431.0,70426.0,0.014206]
[1771069945781,0.014206,70428.0,70423.0,0.028567]
[1771069945985,0.014206,70429.0,70421.0,0.014208]
[1771069945986,0.014206,70427.0,70421.0,0.014208]
[1771069946183,0.014206,70427.0,70418.0,0.014208]
[1771069946378,0.392044,70429.0,70417.0,0.014208]
[1771069946583,0.014207,70422.0,70415.0,0.014209]
[1771069946780,0.014207,70423.0,70417.0,0.014208]
[1771069946985,0.014207,70423.0,70418.0,0.01436]
[1771069947386,0.014207,70422.0,70418.0,0.01436]
[1771069947781,0.014209,70413.0,70411.0,0.01436]
[1771069947982,0.014209,70413.0,70406.0,0.14208]
[1771069948189,0.014209,70413.0,70407.0,0.01436]
[1771069948487,0.014209,70413.0,70407.0,0.02857]
[1771069948782,0.014209,70416.0,70407.0,0.01436]
[1771069948985,0.014208,70421.0,70412.0,0.014209]
[1771069949178,0.014208,70418.0,70413.0,0.014209]
[1771069949395,0.014208,70420.0,70412.0,0.014209]
[1771069949590,0.014208,70418.0,70412.0,0.014209]
[1771069950188,0.01421,70412.0,70406.0,0.11398]
[1771069950389,0.392044,70416.0,70408.0,0.01421]
[1771069950590,0.014209,70414.0,70407.0,0.01436]
[1771069950784,0.392044,70416.0,70408.0,0.01421]
[1771069950785,0.014209,70415.0,70408.0,0.01421]
[1771069951084,0.014209,70414.0,70408.0,0.01421]
[1771069951286,0.028418,70414.0,70408.0,0.01421]
[1771069951484,0.014209,70414.0,70407.0,0.01436]
[1771069951683,0.014209,70413.0,70407.0,0.02857]
[1771069951884,0.406404,70416.0,70407.0,0.02857]
[1771069952085,0.406404,70416.0,70408.0,0.01421]
[1771069952286,0.014209,70417.0,70411.0,0.01421]
[1771069952491,0.028569,70416.0,70411.0,0.01421]
[1771069952793,0.028569,70416.0,70410.0,0.01421]
[1771069953090,0.014209,70415.0,70410.0,0.01421]
[1771069953292,0.01421,70411.0,70407.0,0.01436]
[1771069953492,0.014209,70413.0,70407.0,0.02857]
[1771069953987,0.014209,70412.0,70407.0,0.02857]
[1771069954185,0.014209,70413.0,70407.0,0.02857]
[1771069954581,0.014209,70413.0,70408.0,0.01421]
[1771069955385,0.41046001,70415.0,70409.0,0.01421]
[1771069955588,0.014208,70421.0,70411.0,0.014209]
[1771069955796,0.01436,70420.0,70411.0,0.014209]
[1771069955991,0.028418,70416.0,70410.0,0.01421]
[1771069956187,0.14212,70421.0,70407.0,0.02857]
[1771069956188,0.014209,70414.0,70407.0,0.01421]
[1771069956591,0.014209,70413.0,70405.0,0.014211]
[1771069956791,0.014209,70413.0,70407.0,0.01421]
[1771069957296,0.01421,70409.0,70405.0,0.01436]
[1771069957694,0.01421,70410.0,70405.0,0.01436]
[1771069958804,0.01421,70408.0,70405.0,0.01436]
[1771069959002,0.01421,70409.0,70404.0,0.01432]
[1771069959196,0.39625101,70420.0,70408.0,0.01421]
[1771069959493,0.014209,70415.0,70409.0,0.01421]
[1771069959691,0.01432,70414.0,70409.0,0.01421]
[1771069960089,0.014208,70418.0,70412.0,0.014209]
[1771069960499,0.028528,70421.0,70414.0,0.014209]
[1771069960796,0.01432,70421.0,70417.0,0.014208]
[1771069960989,0.01432,70422.0,70417.0,0.014208]
[1771069961189,0.170646,70428.0,70422.0,0.014207]
[1771069961394,0.014207,70425.0,70419.0,0.028528]
[1771069961600,0.014207,70424.0,70419.0,0.01432]
[1771069961801,0.014207,70424.0,70419.0,0.028528]
[1771069962201,0.014206,70427.0,70421.0,0.014208]
[1771069962400,0.028526,70429.0,70421.0,0.014208]
[1771069962601,0.014206,70427.0,70420.0,0.014208]
[1771069962790,0.01432,70429.0,70421.0,0.014208]
[1771069962996,0.4102067,70433.0,70422.0,0.014207]